bitfinex/quotes_SOLUSD_20251223
["timestamp","ask_amount","ask_price","bid_price","bid_amount"]
[1766472300857,8.0232944,124.64,124.61,4.07595897]
[1766472301055,8.7132944,124.64,124.61,4.07595897]
[1766472301250,0.69,124.63,124.61,3.86595897]
[1766472303468,0.69,124.63,124.6,0.21]
[1766472303661,0.69,124.63,124.6,4.07595897]
[1766472304460,0.69,124.63,124.61,3.86595897]
[1766472311471,0.69,124.63,124.6,0.21]
[1766472311672,0.69,124.63,124.61,3.86595897]
[1766472318403,0.69,124.63,124.6,0.21]
[1766472318583,0.69,124.63,124.61,3.86595897]
[1766472329425,0.69,124.63,124.61,4.07595897]
[1766472330521,0.69,124.63,124.61,3.86595897]
[1766472334007,0.69,124.63,124.62,3.86595897]
[1766472337036,0.69,124.63,124.6,0.21]
[1766472337230,0.69,124.63,124.61,3.86595897]
[1766472341834,8.70196202,124.66,124.62,4.07595897]
[1766472342130,14.66,124.67,124.65,2.47385792]
[1766472342336,14.66,124.67,124.66,2.47385792]
[1766472342536,14.66,124.67,124.64,0.69]
[1766472342713,14.66,124.67,124.65,2.47385792]
[1766472343426,14.66,124.67,124.66,2.47385792]
[1766472344118,15.34,124.67,124.66,2.47385792]
[1766472344531,15.34,124.67,124.66,1.75385792]
[1766472344830,15.34,124.67,124.66,2.47385792]
[1766472345031,15.34,124.67,124.64,0.69]
[1766472345032,23.36122169,124.67,124.65,2.47385792]
[1766472345814,15.34,124.67,124.65,3.16385792]
[1766472347833,0.68,124.67,124.65,3.16385792]
[1766472348242,0.68,124.67,124.66,2.47385792]
[1766472348942,11.11767296,124.68,124.66,3.16385792]
[1766472349340,11.11767296,124.68,124.66,2.47385792]
[1766472349539,19.13838522,124.68,124.65,0.69]
[1766472349744,19.13838522,124.68,124.65,3.16385792]
[1766472350039,0.68,124.67,124.64,2.47385792]
[1766472350257,0.68,124.67,124.63,3.16385792]
[1766472350258,0.68,124.66,124.63,3.16385792]
[1766472350443,0.68,124.66,124.63,2.47385792]
[1766472350944,14.66,124.65,124.63,3.16385792]
[1766472351145,15.34,124.65,124.63,3.16385792]
[1766472351649,14.66,124.65,124.63,3.16385792]
[1766472351854,14.66,124.65,124.64,2.47385792]
[1766472352451,19.13841205,124.68,124.65,0.69]
[1766472352751,19.13841205,124.68,124.65,3.16385792]
[1766472352924,0.68,124.67,124.65,3.16385792]
[1766472353733,0.68,124.67,124.65,2.47385792]
[1766472355432,8.70123844,124.67,124.64,3.16385792]
[1766472355750,0.68,124.66,124.62,3.16385792]
[1766472355927,0.68,124.65,124.61,3.16385792]
[1766472356135,0.68,124.65,124.62,2.47385792]
[1766472356343,0.68,124.65,124.62,3.16385792]
[1766472357455,8.70206033,124.66,124.63,3.16385792]
[1766472357655,0.68,124.65,124.63,3.16385792]
[1766472358245,0.68,124.65,124.63,0.69]
[1766472358424,0.68,124.65,124.63,3.16385792]
[1766472358626,8.7024707,124.65,124.63,0.69]
[1766472364467,8.7024707,124.65,124.62,3.16385792]
[1766472367556,8.7024707,124.65,124.62,0.69]
[1766472367747,0.66,124.63,124.58,0.68]
[1766472368059,0.66,124.63,124.59,3.15385792]
[1766472368550,0.66,124.63,124.6,0.68]
[1766472369254,0.66,124.62,124.58,0.68]
[1766472369565,0.66,124.61,124.58,0.68]
[1766472370242,0.66,124.61,124.58,3.15385792]
[1766472370442,10.43767296,124.62,124.59,2.47385792]
[1766472370638,11.09767296,124.62,124.59,3.15385792]
[1766472371041,0.66,124.61,124.59,3.15385792]
[1766472372963,11.09767296,124.62,124.59,3.15385792]
[1766472375766,19.12208291,124.62,124.59,0.68]
[1766472376265,0.66,124.61,124.59,0.68]
[1766472378068,3.13385792,124.61,124.59,0.68]
[1766472379072,0.66,124.61,124.59,0.68]
[1766472381656,8.68397904,124.63,124.59,2.47385792]
[1766472381862,21.59550992,124.63,124.6,0.68]
[1766472382257,0.66,124.62,124.6,0.68]
[1766472382460,0.66,124.62,124.58,0.68]
[1766472382461,0.66,124.61,124.58,0.68]
[1766472383376,2.47385792,124.62,124.58,0.68]
[1766472383550,0.66,124.62,124.59,0.68]
[1766472385260,3.13385792,124.62,124.59,0.68]
[1766472386075,2.47385792,124.62,124.59,0.68]
[1766472386276,0.66,124.61,124.59,0.68]
[1766472387155,3.13385792,124.62,124.59,0.68]
[1766472387355,0.66,124.62,124.59,0.68]
[1766472387672,0.66,124.62,124.59,3.15385792]
[1766472388882,0.66,124.62,124.59,0.68]
[1766472391874,20.93538861,124.63,124.59,0.68]
[1766472391875,10.43767296,124.63,124.6,0.72]
[1766472392381,11.10767296,124.63,124.6,0.72]
[1766472394484,13.58153088,124.63,124.6,0.72]
[1766472394988,0.67,124.62,124.58,2.47385792]
[1766472395190,3.14385792,124.62,124.59,0.72]
[1766472395502,0.67,124.62,124.59,0.72]
[1766472395664,3.14385792,124.62,124.59,0.72]
[1766472395987,21.62559239,124.63,124.59,0.72]
[1766472396188,19.15173447,124.63,124.59,0.72]
[1766472396375,21.62559239,124.63,124.59,0.72]
[1766472396575,25.81798186,124.63,124.59,0.72]
[1766472396883,0.69,124.62,124.58,0.68]
[1766472397063,0.69,124.61,124.58,0.68]
[1766472399593,3.16385792,124.62,124.58,0.68]
[1766472400296,25.81798186,124.63,124.59,0.68]
[1766472400591,0.69,124.62,124.59,0.68]
[1766472404291,4.19051227,124.61,124.59,0.68]
[1766472412907,4.88051227,124.61,124.58,0.68]
[1766472421583,12.2155512,124.61,124.58,0.68]
[1766472421782,0.69,124.6,124.58,0.68]
[1766472422382,4.88051227,124.61,124.58,0.68]
[1766472423386,0.69,124.6,124.58,0.68]
[1766472428212,4.89051227,124.61,124.58,0.68]
[1766472429488,0.7,124.6,124.58,0.68]
[1766472429799,0.7,124.61,124.58,0.68]
[1766472431721,0.7,124.61,124.58,3.86914233]
[1766472431910,0.7,124.61,124.59,0.67]
[1766472432717,9.08169375,124.63,124.59,4.53914233]
[1766472432895,0.7,124.62,124.6,0.67]
[1766472433095,9.08169375,124.63,124.6,0.67]
[1766472434810,0.7,124.62,124.6,0.67]
[1766472437822,0.7,124.62,124.59,0.67]
[1766472439302,8.38169375,124.63,124.59,3.86914233]
[1766472439506,9.08169375,124.63,124.6,0.67]
[1766472439995,12.95083608,124.63,124.6,0.67]
[1766472440306,0.7,124.62,124.59,0.67]
[1766472441709,0.7,124.6,124.57,15.33]
[1766472443708,0.7,124.6,124.58,0.67]
[1766472444020,8.02519467,124.61,124.58,0.67]
[1766472444202,8.72519467,124.61,124.58,0.67]
[1766472444804,0.7,124.6,124.58,0.67]
[1766472447505,0.7,124.61,124.58,0.67]
[1766472447711,4.56914233,124.6,124.56,0.67]
[1766472448224,0.7,124.6,124.57,0.67]
[1766472448724,4.56914233,124.6,124.55,22.68869818]
[1766472449029,0.7,124.59,124.56,0.67]
[1766472455833,0.68,124.58,124.56,0.67]
[1766472456436,0.68,124.58,124.55,15.37]
[1766472458012,8.72706117,124.58,124.55,15.37]
[1766472458212,8.02706117,124.58,124.55,15.37]
[1766472458444,0.7,124.57,124.55,15.37]
[1766472458648,0.7,124.56,124.53,0.91]
[1766472459213,0.7,124.56,124.54,0.71]
[1766472463914,0.7,124.56,124.53,0.2]
[1766472464115,0.7,124.56,124.53,3.3880508]
[1766472464822,8.72836697,124.56,124.53,0.91]
[1766472466736,0.7,124.55,124.53,0.2]
[1766472468619,8.72773283,124.57,124.54,0.71]
[1766472469119,8.02773283,124.57,124.54,0.71]
[1766472469549,0.7,124.56,124.54,0.71]
[1766472470933,0.7,124.56,124.54,3.1880508]
[1766472471136,0.7,124.57,124.54,3.1880508]
[1766472476557,2.4780508,124.56,124.53,0.2]
[1766472476745,0.7,124.55,124.53,0.2]
[1766472477730,0.7,124.54,124.53,0.2]
[1766472479063,8.7291604,124.55,124.53,0.2]
[1766472481440,0.7,124.54,124.53,0.2]
[1766472481746,8.72954873,124.54,124.51,0.71]
[1766472482146,0.7,124.53,124.5,14.86]
[1766472482349,0.7,124.53,124.46,20.28617421]
[1766472482350,0.2049492,124.47,124.46,0.2]
[1766472482555,0.7,124.5,124.46,17.3380508]
[1766472482755,4.88572598,124.5,124.47,2.4780508]
[1766472482943,4.18572598,124.5,124.48,2.4780508]
[1766472483638,4.18572598,124.5,124.49,2.4780508]
[1766472483839,0.7,124.53,124.49,2.4780508]
[1766472484070,0.7,124.53,124.51,2.4780508]
[1766472484266,0.7,124.53,124.49,8.03273252]
[1766472484574,0.7,124.53,124.51,2.4780508]
[1766472485445,0.7,124.53,124.5,3.1880508]
[1766472485645,8.73028064,124.53,124.5,3.1880508]
[1766472485859,0.7,124.52,124.5,2.4780508]
[1766472486161,0.7,124.52,124.49,3.1580508]
[1766472486481,0.7,124.52,124.49,2.4780508]
[1766472486669,0.7,124.52,124.48,3.1580508]
[1766472487054,0.7,124.52,124.49,2.4780508]
[1766472487667,0.69,124.51,124.49,2.4780508]
[1766472488547,0.69,124.51,124.48,3.1580508]
[1766472489860,0.69,124.5,124.48,3.1580508]
[1766472491864,8.0315201,124.51,124.47,0.68]
[1766472491865,0.69,124.51,124.47,0.68]
[1766472492066,0.69,124.51,124.48,2.4780508]
[1766472492563,3.1680508,124.51,124.46,0.2]
[1766472492773,3.1680508,124.5,124.46,2.6780508]
[1766472492947,0.69,124.49,124.46,2.6780508]
[1766472493146,0.69,124.49,124.46,3.3580508]
[1766472493761,0.69,124.49,124.46,0.88]
[1766472493970,0.69,124.49,124.46,0.2]
[1766472493971,0.69,124.48,124.46,0.2]
[1766472502158,0.69,124.48,124.46,2.6780508]
[1766472502650,0.69,124.47,124.45,0.2]
[1766472502851,0.69,124.47,124.45,3.3580508]
[1766472503074,0.69,124.48,124.45,3.3580508]
[1766472503272,0.69,124.48,124.46,3.1580508]
[1766472503973,0.69,124.48,124.46,0.68]
[1766472504170,0.69,124.48,124.46,3.1580508]
[1766472504759,0.69,124.48,124.46,2.4780508]
[1766472506281,0.69,124.48,124.46,3.1580508]
[1766472506959,0.69,124.48,124.46,2.4780508]
[1766472508475,0.69,124.48,124.46,3.1580508]
[1766472508684,0.69,124.48,124.45,0.88]
[1766472508980,0.69,124.48,124.45,3.3580508]
[1766472511478,16.75512385,124.5,124.47,0.68]
[1766472511658,0.69,124.49,124.46,2.4780508]
[1766472511859,0.69,124.49,124.46,3.1580508]
[1766472515684,0.69,124.49,124.45,0.2]
[1766472515882,0.69,124.49,124.46,2.4780508]
[1766472516080,0.69,124.49,124.46,3.1680508]
[1766472516385,8.03229392,124.5,124.47,0.69]
[1766472516386,0.72,124.5,124.47,0.69]
[1766472516975,0.72,124.5,124.46,3.1680508]
[1766472517187,0.72,124.5,124.47,3.1680508]
[1766472517983,8.03171957,124.51,124.48,3.1980508]
[1766472518187,38.92473059,124.53,124.49,3.1980508]
[1766472518188,8.70090422,124.52,124.49,3.1980508]
[1766472519891,8.70090422,124.52,124.49,0.72]
[1766472521494,0.67,124.51,124.49,0.72]
[1766472525872,0.67,124.51,124.47,14.68]
[1766472525873,0.67,124.5,124.47,17.1580508]
[1766472526081,8.03154681,124.51,124.48,0.72]
[1766472526274,8.70154681,124.51,124.48,0.72]
[1766472526682,0.67,124.5,124.48,0.72]
[1766472527508,8.70154681,124.51,124.48,0.72]
[1766472527883,0.67,124.51,124.48,4.59592459]
[1766472528517,0.67,124.51,124.48,0.72]
[1766472531715,0.67,124.51,124.48,4.59592459]
[1766472533107,0.67,124.51,124.49,0.72]
[1766472536391,35.23021547,124.53,124.5,0.72]
[1766472536586,10.43767296,124.53,124.5,0.72]
[1766472536807,0.67,124.52,124.5,0.72]
[1766472537597,10.43767296,124.54,124.52,0.72]
[1766472537803,11.10767296,124.54,124.52,0.72]
[1766472538119,11.10767296,124.54,124.51,0.72]
[1766472538297,10.43767296,124.54,124.51,0.72]
[1766472538501,14.31359755,124.54,124.51,0.72]
[1766472538699,3.87592459,124.53,124.49,0.72]
[1766472539010,4.54592459,124.51,124.48,15.4]
[1766472540693,0.67,124.51,124.48,15.4]
[1766472541110,3.87592459,124.51,124.46,34.25337516]
[1766472541310,0.67,124.5,124.46,26.59021831]
[1766472541499,0.67,124.5,124.47,0.72]
[1766472541911,4.54592459,124.48,124.45,0.92]
[1766472543097,0.67,124.48,124.45,0.92]
[1766472544216,4.54592459,124.49,124.45,0.92]
[1766472545117,0.67,124.49,124.46,0.72]
[1766472545446,0.67,124.48,124.45,0.92]
[1766472545888,0.68,124.47,124.45,0.92]
[1766472546088,0.68,124.47,124.45,0.2]
[1766472548500,0.68,124.46,124.45,0.2]
[1766472549222,4.55592459,124.46,124.45,0.2]
[1766472549614,0.68,124.46,124.45,0.2]
[1766472549813,4.55592459,124.46,124.45,0.2]
[1766472550013,21.68887032,124.48,124.45,0.87]
[1766472550210,0.68,124.47,124.45,0.87]
[1766472550412,4.55592459,124.47,124.45,0.87]
[1766472550610,4.55592459,124.47,124.45,0.2]
[1766472550811,0.68,124.46,124.45,0.2]
[1766472552956,14.33530558,124.48,124.45,0.2]
[1766472553102,14.99359755,124.48,124.45,0.2]
[1766472553309,4.55592459,124.47,124.45,0.2]
[1766472554428,0.68,124.45,124.44,0.2]
[1766472554634,4.55592459,124.45,124.44,0.2]
[1766472554929,4.55592459,124.45,124.43,0.2]
[1766472555113,3.87592459,124.44,124.43,0.2]
[1766472556226,23.02895311,124.45,124.43,0.2]
[1766472562434,14.99359755,124.45,124.43,0.2]
[1766472563532,10.43767296,124.45,124.43,0.2]
[1766472564340,14.31359755,124.45,124.43,0.2]
[1766472565024,14.99359755,124.45,124.43,0.2]
[1766472566646,4.55592459,124.44,124.43,0.2]
[1766472569747,3.87592459,124.44,124.43,0.2]
[1766472571533,4.55592459,124.44,124.43,0.2]
[1766472571845,4.55592459,124.44,124.41,15.38]
[1766472572429,4.55592459,124.44,124.41,0.7]
[1766472582253,4.59592459,124.43,124.41,0.7]
[1766472585456,3.87592459,124.43,124.41,0.7]
[1766472586467,3.87592459,124.44,124.41,0.7]
[1766472586767,4.59592459,124.44,124.41,0.7]
[1766472587649,28.99359755,124.45,124.41,0.7]
[1766472587970,2.48345637,124.44,124.4,3.39345637]
[1766472588152,3.20345637,124.43,124.4,0.91]
[1766472588348,2.48345637,124.42,124.4,0.91]
[1766472589271,8.75697021,124.43,124.4,0.91]
[1766472589465,32.17622635,124.44,124.41,0.71]
[1766472589852,24.14001207,124.44,124.41,3.19345637]
[1766472590050,21.6765554,124.45,124.42,0.71]
[1766472590258,21.6765554,124.45,124.41,0.71]
[1766472590259,3.20345637,124.44,124.41,0.71]
[1766472590462,0.72,124.44,124.41,0.71]
[1766472590769,3.20345637,124.44,124.41,0.71]
[1766472592260,0.72,124.44,124.41,0.71]
[1766472592466,3.20345637,124.44,124.41,0.71]
[1766472594578,0.72,124.44,124.41,0.71]
[1766472594763,3.20345637,124.44,124.41,0.71]
[1766472594958,2.48345637,124.44,124.41,0.71]
[1766472595365,13.64112933,124.45,124.41,0.71]
[1766472595678,0.72,124.44,124.41,0.71]
[1766472597374,12.92112933,124.45,124.41,0.71]
[1766472597375,13.64112933,124.45,124.41,0.71]
[1766472597681,12.92112933,124.45,124.41,2.48345637]
[1766472597993,12.92112933,124.45,124.42,0.71]
[1766472599490,21.67650876,124.45,124.42,0.71]
[1766472601088,3.20345637,124.44,124.41,0.71]
[1766472602587,0.72,124.44,124.41,0.71]
[1766472602894,8.75603757,124.44,124.41,0.71]
[1766472603189,11.23949394,124.44,124.41,0.71]
[1766472604296,0.72,124.44,124.41,0.71]
[1766472604894,8.75603228,124.44,124.41,0.71]
[1766472605200,11.23948865,124.44,124.41,0.71]
[1766472606578,10.43767296,124.45,124.42,0.71]
[1766472606787,8.73421725,124.47,124.44,0.71]
[1766472607495,11.21767362,124.47,124.44,0.71]
[1766472610686,3.18345637,124.46,124.44,0.71]
[1766472610890,11.21823268,124.46,124.43,0.71]
[1766472611800,3.18345637,124.46,124.43,0.71]
[1766472612598,0.7,124.46,124.43,0.71]
[1766472612803,3.18345637,124.46,124.43,0.71]
[1766472613312,12.92112933,124.48,124.45,0.71]
[1766472613687,13.62112933,124.48,124.45,0.71]
[1766472613993,0.7,124.47,124.45,0.71]
[1766472616698,21.65455136,124.48,124.45,0.71]
[1766472617305,13.62112933,124.48,124.45,0.71]
[1766472617698,11.13767296,124.48,124.45,0.71]
[1766472617883,13.62112933,124.48,124.45,0.71]
[1766472618304,11.13767296,124.48,124.45,0.71]
[1766472619010,21.65455136,124.5,124.46,2.48345637]
[1766472619222,3.18345637,124.5,124.47,0.71]
[1766472619510,0.7,124.5,124.47,0.71]
[1766472619809,11.21559733,124.5,124.47,0.71]
[1766472620004,8.73214096,124.5,124.47,0.71]
[1766472620207,11.21559733,124.5,124.47,0.71]
[1766472620703,4.196477,124.53,124.48,0.71]
[1766472620896,7.37993337,124.53,124.49,0.71]
[1766472621101,2.48345637,124.52,124.49,0.71]
[1766472621315,11.13767296,124.53,124.49,0.71]
[1766472621521,13.62112933,124.53,124.49,0.71]
[1766472621804,2.48345637,124.52,124.49,0.71]
[1766472622111,3.18345637,124.5,124.46,0.71]
[1766472622297,3.18345637,124.5,124.47,0.71]
[1766472622497,2.48345637,124.5,124.47,0.71]
[1766472622807,3.18345637,124.51,124.47,0.71]
[1766472623214,3.18345637,124.5,124.45,38.80060301]
[1766472623419,2.48345637,124.49,124.46,0.71]
[1766472623607,0.7,124.5,124.47,0.71]
[1766472623608,3.18345637,124.5,124.47,0.71]
[1766472624989,8.03084248,124.52,124.47,0.71]
[1766472625192,3.18345637,124.51,124.47,0.71]
[1766472625389,0.7,124.51,124.48,0.71]
[1766472625696,3.18345637,124.51,124.48,0.71]
[1766472626119,3.18345637,124.51,124.46,0.71]
[1766472626120,2.48345637,124.5,124.46,0.71]
[1766472626611,0.7,124.51,124.46,0.71]
[1766472626612,0.7,124.51,124.47,0.71]
[1766472626811,2.48345637,124.5,124.47,0.71]
[1766472627010,0.7,124.51,124.47,0.71]
[1766472627309,2.48345637,124.5,124.47,0.71]
[1766472629611,3.18345637,124.5,124.47,0.71]
[1766472629908,13.62112933,124.51,124.48,0.71]
[1766472630114,8.03032134,124.53,124.48,2.48345637]
[1766472630316,0.7,124.52,124.49,0.71]
[1766472631301,2.48345637,124.52,124.49,0.71]
[1766472634024,19.1679943,124.53,124.49,0.71]
[1766472634319,3.18345637,124.52,124.49,0.71]
[1766472635402,19.1679943,124.53,124.49,0.71]
[1766472635603,21.65145067,124.53,124.49,0.71]
[1766472635922,0.69,124.52,124.49,0.71]
[1766472637097,21.64143551,124.53,124.49,0.71]
[1766472637305,0.69,124.52,124.49,0.71]
[1766472639326,3.17345637,124.52,124.49,0.71]
[1766472640328,2.48345637,124.52,124.49,0.71]
[1766472640532,19.15797914,124.53,124.49,0.71]
[1766472640920,21.64143551,124.53,124.49,0.71]
[1766472642331,20.95143551,124.53,124.49,0.71]
[1766472642534,21.64143551,124.53,124.49,0.71]
[1766472645029,21.64143551,124.53,124.51,0.7]
[1766472645030,10.43767296,124.53,124.51,0.7]
[1766472648036,4.1832796,124.56,124.52,0.18]
[1766472648214,0.69,124.55,124.52,0.18]
[1766472648539,0.69,124.55,124.52,4.05470843]
[1766472649539,0.69,124.55,124.53,3.87470843]
[1766472652044,0.69,124.55,124.52,4.05470843]
[1766472652334,0.69,124.54,124.51,18.73470843]
[1766472652635,0.69,124.54,124.52,3.87470843]
[1766472654740,8.02919102,124.55,124.52,3.87470843]
[1766472654741,8.71919102,124.55,124.52,3.87470843]
[1766472655739,0.69,124.54,124.52,3.87470843]
[1766472656135,0.69,124.54,124.51,14.84]
[1766472656335,0.69,124.54,124.52,3.87470843]
[1766472660817,11.12767296,124.56,124.53,3.87470843]
[1766472661425,11.12767296,124.56,124.53,0.18]
[1766472661645,11.12767296,124.56,124.53,4.05470843]
[1766472662155,19.15598387,124.56,124.53,4.05470843]
[1766472662328,0.69,124.55,124.52,0.18]
[1766472662529,0.69,124.55,124.51,14.84]
[1766472662724,0.69,124.55,124.49,30.90372124]
[1766472662923,0.69,124.55,124.5,14.84]
[1766472663450,0.69,124.55,124.51,3.87470843]
[1766472663951,0.69,124.55,124.52,3.87470843]
[1766472664328,0.69,124.55,124.53,3.87470843]
[1766472665350,11.12767296,124.56,124.53,3.87470843]
[1766472665526,0.69,124.55,124.53,3.87470843]
[1766472665725,11.12767296,124.56,124.53,4.05470843]
[1766472667559,11.12767296,124.56,124.53,0.18]
[1766472667738,11.12767296,124.56,124.53,4.05470843]
[1766472668339,11.12767296,124.56,124.53,3.87470843]
[1766472668534,0.71,124.55,124.53,3.87470843]
[1766472671462,0.71,124.55,124.52,4.05470843]
[1766472672859,22.34082676,124.56,124.52,4.05470843]
[1766472673032,18.46611833,124.56,124.52,4.05470843]
[1766472673232,22.34082676,124.56,124.52,4.05470843]
[1766472673628,22.34082676,124.56,124.5,22.69192437]
[1766472673629,3.87470843,124.55,124.5,3.87470843]
[1766472673964,3.87470843,124.55,124.5,19.21470843]
[1766472674331,18.46611833,124.56,124.5,19.21470843]
[1766472674628,0.71,124.54,124.5,19.21470843]
[1766472674836,0.71,124.54,124.51,0.68]
[1766472675039,0.71,124.54,124.51,4.55470843]
[1766472678159,0.71,124.54,124.52,3.87470843]
[1766472679265,0.71,124.54,124.51,4.55470843]
[1766472684372,0.71,124.54,124.47,20.08424984]
[1766472684373,0.71,124.51,124.47,4.55470843]
[1766472684567,0.71,124.51,124.48,4.55470843]
[1766472685953,0.71,124.51,124.48,3.87470843]
[1766472686153,0.71,124.51,124.47,3.87470843]
[1766472686350,0.71,124.51,124.47,4.55470843]
[1766472688272,0.71,124.51,124.48,3.87470843]
[1766472688584,0.71,124.51,124.49,3.87470843]
[1766472690647,0.71,124.51,124.47,8.03402895]
[1766472690962,0.71,124.51,124.49,3.87470843]
[1766472691542,0.71,124.51,124.48,4.55470843]
[1766472692345,0.71,124.51,124.49,3.87470843]
[1766472699183,0.71,124.51,124.48,4.55470843]
[1766472699782,0.71,124.51,124.48,0.68]
[1766472699981,0.71,124.51,124.48,4.55470843]
[1766472705500,0.71,124.51,124.49,3.87470843]
[1766472708573,11.13767296,124.53,124.5,0.68]
[1766472708777,0.7,124.52,124.5,3.87470843]
[1766472709280,0.7,124.52,124.49,0.68]
[1766472710065,0.7,124.5,124.43,20.09104653]
[1766472710272,0.7,124.49,124.46,3.16031259]
[1766472711973,8.73281036,124.49,124.45,17.16031259]
[1766472712183,0.7,124.47,124.44,2.48031259]
[1766472712386,0.7,124.46,124.43,3.16031259]
[1766472712583,0.7,124.46,124.42,17.84031259]
[1766472713267,0.7,124.46,124.43,2.48031259]
[1766472714098,10.51449246,124.47,124.44,3.16031259]
[1766472714099,0.7,124.47,124.44,3.16031259]
[1766472714403,0.7,124.48,124.44,3.16031259]
[1766472719513,0.7,124.47,124.44,3.16031259]
[1766472720199,18.47063176,124.49,124.44,10.5162215]
[1766472720395,18.47063176,124.49,124.45,3.16031259]
[1766472720396,13.61798555,124.49,124.45,3.16031259]
[1766472720628,0.7,124.48,124.45,3.16031259]
[1766472721793,0.7,124.48,124.44,3.16031259]
[1766472722008,0.7,124.47,124.44,3.16031259]
[1766472723207,10.43767296,124.49,124.44,2.48031259]
[1766472723406,0.7,124.48,124.45,2.48031259]
[1766472723611,0.7,124.48,124.45,3.16031259]
[1766472724108,0.7,124.48,124.45,0.68]
[1766472726513,0.69,124.47,124.44,3.19031259]
[1766472728211,10.51380478,124.48,124.45,0.71]
[1766472728212,0.69,124.48,124.45,0.71]
[1766472728515,0.69,124.48,124.44,2.48031259]
[1766472728714,0.69,124.48,124.44,3.19031259]
[1766472729390,10.43767296,124.49,124.46,2.48031259]
[1766472729693,0.69,124.5,124.47,0.71]
[1766472730493,0.69,124.49,124.46,2.48031259]
[1766472730908,0.69,124.49,124.46,3.19031259]
[1766472731215,0.69,124.49,124.45,22.71507091]
[1766472731216,21.63971791,124.51,124.48,0.71]
[1766472731511,0.69,124.5,124.47,2.48031259]
[1766472732213,0.69,124.5,124.46,0.71]
[1766472732412,0.69,124.5,124.46,3.19031259]
[1766472732795,18.46940532,124.51,124.48,0.71]
[1766472733195,19.15940532,124.51,124.48,0.71]
[1766472733798,19.15940532,124.51,124.48,3.19031259]
[1766472734606,11.12767296,124.51,124.48,3.19031259]
[1766472735414,19.15917361,124.51,124.48,3.19031259]
[1766472738014,0.69,124.53,124.49,3.19031259]
[1766472738204,0.69,124.53,124.5,2.48031259]
[1766472738713,0.69,124.53,124.49,3.19031259]
[1766472739096,0.69,124.53,124.5,2.48031259]
[1766472739302,0.69,124.53,124.5,3.19031259]
[1766472740316,10.43767296,124.54,124.5,2.48031259]
[1766472740640,0.69,124.54,124.5,2.48031259]
[1766472740816,0.69,124.52,124.48,0.71]
[1766472741112,0.69,124.51,124.47,3.19031259]
[1766472741291,3.17031259,124.51,124.47,3.19031259]
[1766472741493,0.69,124.5,124.47,0.71]
[1766472742214,0.69,124.5,124.47,3.19031259]
[1766472742590,10.51209706,124.51,124.44,2.48031259]
[1766472742591,2.48031259,124.48,124.44,2.48031259]
[1766472742918,0.69,124.46,124.43,3.19031259]
[1766472747727,0.69,124.46,124.43,0.71]
[1766472747896,0.69,124.46,124.43,3.19031259]
[1766472748607,0.69,124.47,124.44,3.19031259]
[1766472751731,10.43767296,124.49,124.44,2.48031259]
[1766472751905,0.71,124.52,124.48,3.19031259]
[1766472752224,0.71,124.5,124.46,2.48031259]
[1766472752421,0.71,124.49,124.45,2.48031259]
[1766472752622,0.71,124.49,124.45,3.19031259]
[1766472752826,0.71,124.48,124.44,3.19031259]
[1766472753522,0.71,124.48,124.44,0.71]
[1766472753523,0.71,124.47,124.44,0.71]